Cogmind - Beta 13 @@@ ROGUE MODE // 2024.04.07 @ 14:44:00 Player: Cherman0 Result: Self-destructed Performance ------------- Evolutions (0) 0 Regions Visited (4) 800 Robots Destroyed (38) 190 Value Destroyed (903) 903 Prototype IDs (2) 40 Alien Tech Used (0) 0 Bonus (-182) -182 TOTAL SCORE: 1751 Bonus ------- Follower Combat Kills 14 Friendly Fire -196 Cogmind --------- Core Integrity 98/250 Matter 290/300 Energy 160/160 System Corruption 0% Temperature Cool (0) Movement Treading (160) Location -7/Recycling Parts ------- > --- POWER (1) -------- Light Nuclear Core > --- PROPULSION (2) --- Improved Treads Improved Treads > --- UTILITY (2) ------ Scrap Engine > --- WEAPON (2) ------- Subdweller Laser Beamcaster > --- INVENTORY (5) ---- Experimental Sensor Array Cobbler Unit Subdweller Laser Flamer Peak State ------------ > --- POWER ------------ Light Nuclear Core > --- PROPULSION ------- Improved Treads Improved Treads > --- UTILITY ---------- Scrap Engine > --- WEAPON ----------- Subdweller Laser Beamcaster > --- INVENTORY -------- Experimental Sensor Array Cobbler Unit Subdweller Laser Flamer [Rating: 31] Favorites ----------- Power Light Nuclear Core Engine Subdweller Power Source Power Core Light Nuclear Core Propulsion Improved Treads Treads Improved Treads Utility Large Storage Unit Device Sensor Array Storage Large Storage Unit Processor Signal Interpreter Weapon Autogun Energy Gun Subdweller Laser Ballistic Gun Autogun Launcher Rocket Launcher Special Weapon Plasma Cutter Impact Weapon Makeshift Hammer Build | -11 -10 -10 -10 -7 ------- Run | Yrd Mat Min Sub Rec Slots Evolved . | . . . . . Power . | . . . . . Propulsion . | . . . . . Utility . | . . . . . Weapon . | . . . . . Parts Attached 45 | 7 13 5 19 1 Power 8 | 1 3 . 4 . Engine 4 | 1 1 . 2 . Core 4 | . 2 . 2 . Reactor . | . . . . . Propulsion 5 | 2 3 . . . Treads 5 | 2 3 . . . Leg . | . . . . . Wheel . | . . . . . Hover . | . . . . . Flight . | . . . . . Utility 8 | 2 4 . 1 1 Device 3 | 1 1 . . 1 Storage 4 | 1 3 . . . Processor 1 | . . . 1 . Hackware . | . . . . . Protection . | . . . . . Artifact . | . . . . . Weapon 24 | 2 3 5 14 . Energy Gun 10 | 1 . . 9 . Energy Cannon . | . . . . . Ballistic Gun 7 | 1 3 3 . . Ballistic Cannon . | . . . . . Launcher 3 | . . 1 2 . Special Weapon 2 | . . 1 1 . Impact Weapon 2 | . . . 2 . Slashing Weapon . | . . . . . Piercing Weapon . | . . . . . Special Melee Weapon . | . . . . . Unidentified Prototypes . | . . . . . Parts Lost 1 | . . 1 . . Power . | . . . . . Propulsion . | . . . . . Utility . | . . . . . Weapon 1 | . . 1 . . Highest Loss Streak 1 | . . 1 . . To Critical Strikes . | . . . . . Average Slot Usage (%) 99 | . 99 99 100 78 Engine 2 | . 2 . 4 . Core 11 | . 11 14 9 14 Treads 27 | . 27 28 28 28 Device 12 | . 14 14 9 7 Storage 13 | . 14 14 14 . Processor 1 | . . . 4 . Energy Gun 12 | . 4 . 26 28 Ballistic Gun 15 | . 23 27 1 . Naked Turns . | . . . . . Heaviest Build 35 | 12 32 33 35 34 Greatest Support 46 | 40 46 46 46 46 Greatest Overweight (x) . | . . . . . Average Overweight (x) . | . . . . . Largest Inventory Capacity 15 | 8 15 15 15 15 Average Capacity 14 | 7 13 15 15 6 Most Carried 15 | 4 15 15 15 15 Average Carried 12 | 2 10 14 14 6 Final Capacity 15 | 8 15 15 15 5 Final Carried 15 | 4 15 14 15 5 Class Distribution -------------------- 100% | Mutant Dominant Class ---------------- Mutant | -10/Materials Mutant | -10/Mines Mutant | -10/Subcaves Mutant | -7/Recycling Resources | -11 -10 -10 -10 -7 ----------- Run | Yrd Mat Min Sub Rec Matter Collected 1164 | 251 405 281 227 . Remotely . | . . . . . Salvage Created 980 | 51 464 292 173 . Parts 68 | 4 36 21 7 . Haulers Intercepted 1 | . 1 . . . Recyclers Shooed . | . . . . . Parts Field Recycled . | . . . . . Retrieved Matter . | . . . . . Parts Self-Destructed 15 | . . . 15 . Prevented . | . . . . . Kills | -11 -10 -10 -10 -7 ------- Run | Yrd Mat Min Sub Rec Combat Hostiles Destroyed 31 | . 12 11 8 . Guns 23 | . 12 11 . . AOE 8 | . . . 8 . Classes Destroyed 7 | 1 5 . 1 . Tunneler 2 | 2 . . . . Hauler 1 | . 1 . . . Operator 1 | . 1 . . . Watcher 2 | . 2 . . . Swarmer 13 | . 6 7 . . Grunt 10 | . 6 4 . . Subdweller 8 | . . . 8 . Thug 1 | . . . 1 . Best Kill Streak 8 | 1 3 3 8 . Combat Bots Only 8 | . 3 3 8 . Max Kills in Single Turn 4 | 1 1 2 4 . Gunslinging 1 | . . 1 . . Exploded 3 | . . . 3 . Melee . | . . . . . Uniques/NPCs Destroyed . | . . . . . Combat | -11 -10 -10 -10 -7 -------- Run | Yrd Mat Min Sub Rec Hostile Shots Fired 100 | . 50 37 13 . Missed 26 | . 13 7 6 . Damage Taken 844 | . 363 323 158 . Core 152 | . 43 42 67 . Absorbed by Shields . | . . . . . Regen/Repaired (Parts) 117 | . 117 . . . Core Remaining (%) 100 | 100 . . . . Volleys Fired 88 | 6 47 26 9 . Largest 2 | 2 2 2 2 . Hottest 135 | 70 70 46 135 . Shots Fired 168 | 12 94 52 10 . Gun 161 | 12 94 52 3 . Cannon . | . . . . . Launcher 3 | . . . 3 . Special 4 | . . . 4 . Kinetic 134 | 6 76 52 . . Thermal 31 | 6 18 . 7 . Explosive 3 | . . . 3 . Electromagnetic . | . . . . . Robot Hit Streak 6 | 3 6 6 1 . Robot Miss Streak 4 | 3 3 4 2 . Penetration Max . | . . . . . Secondary Targets 1 | . . 1 . . Max Gunslinging Chain 1 | . . 1 . . Shots Hit Robots 86 | 5 50 28 3 . Core Hits 52 | 2 23 14 13 . Critical Kills . | . . . . . Critical Parts Destroyed . | . . . . . Critical Strikes . | . . . . . Melee Attacks 3 | . . . 3 . Impact 3 | . . . 3 . Slashing . | . . . . . Piercing . | . . . . . Sneak Attacks . | . . . . . Combat Hostiles . | . . . . . Follow-up Attacks . | . . . . . Damage Inflicted 2115 | 57 697 404 957 . Guns 1178 | 57 697 404 20 . Cannons . | . . . . . Explosions 937 | . . . 937 . Melee . | . . . . . Ramming . | . . . . . Kinetic 957 | 19 534 404 . . Thermal 221 | 38 163 . 20 . Explosive 937 | . . . 937 . Electromagnetic . | . . . . . Impact . | . . . . . Slashing . | . . . . . Piercing . | . . . . . Highest Corruption . | . . . . . Average Corruption . | . . . . . Corruption Purged . | . . . . . Corruption Blocked . | . . . . . Overload Shots . | . . . . . Overflow Damage . | . . . . . Projectiles . | . . . . . Explosions . | . . . . . Melee . | . . . . . Knockbacks . | . . . . . Impact . | . . . . . Kinetic . | . . . . . Secondary . | . . . . . Self-Inflicted Damage 21 | . . . 21 . Shots 2 | . . . 2 . Rammed 1 | . 1 . . . Targets Rammed 1 | . 1 . . . Kicked . | . . . . . Crushed . | . . . . . Highest Temperature 114 | 60 114 87 27 . Average Temperature 23 | 27 22 24 18 . Received Heat Transfer 270 | . 93 135 42 . Siege Activations . | . . . . . Robots Corrupted . | . . . . . Combat Hostiles . | . . . . . Parts Fried . | . . . . . Impact Corruptions . | . . . . . Robots Melted . | . . . . . Combat Hostiles . | . . . . . Parts Melted 1 | . 1 . . . Heat Transferred 629 | 111 481 . 37 . Parts Sabotaged . | . . . . . Parts Stolen . | . . . . . Parts Stripped . | . . . . . Power Chain Reactions . | . . . . . Alert | -11 -10 -10 -10 -7 ------- Run | Yrd Mat Min Sub Rec Peak Influence 196 | 10 196 155 . . Initial 7 | . 6 7 . . Average 59 | 5 71 55 . . Maximum Alert Level . | . . . . . Low Security (%) 100 | 100 100 100 . 100 Level 1 . | . . . . . Level 2 . | . . . . . Level 3 . | . . . . . Level 4 . | . . . . . Level 5 . | . . . . . High Security . | . . . . . Max Security . | . . . . . Squads Dispatched 3 | . 3 . . . Investigation 1 | . 1 . . . Extermination . | . . . . . Reinforcement 2 | . 2 . . . Assault . | . . . . . Garrison . | . . . . . Intercept . | . . . . . Searches Triggered . | . . . . . Construction Impeded . | . . . . . Haulers Reinforced . | . . . . . Active Scanning Responses . | . . . . . Cargo Convoy Interrupts . | . . . . . Stealth | -11 -10 -10 -10 -7 --------- Run | Yrd Mat Min Sub Rec Distress Signals 1 | . 1 . . . Communications Jammed . | . . . . . Distress Signals . | . . . . . Times Spotted 59 | . 25 13 21 . Peak Tracking Total 10 | . 3 3 10 . Tactical Retreats 4 | . 2 1 1 . Traps | -11 -10 -10 -10 -7 ------- Run | Yrd Mat Min Sub Rec Traps Triggered 1 | . 1 . . . Indirectly . | . . . . . Trap Hack Attempts . | . . . . . Triggered . | . . . . . Disarmed . | . . . . . Reprogrammed . | . . . . . Reused . | . . . . . Traps Extracted . | . . . . . Installed . | . . . . . Triggered . | . . . . . Machines | -11 -10 -10 -10 -7 ---------- Run | Yrd Mat Min Sub Rec Machines Disabled 1 | . . 1 . . Max in Single Turn 1 | . . 1 . . Machines Repaired . | . . . . . Machines Dismantled 1 | . . 1 . . Machines Sabotaged . | . . . . . Overloaded Fab Kills . | . . . . . Hacking | -11 -10 -10 -10 -7 --------- Run | Yrd Mat Min Sub Rec Machines Accessed 9 | . 7 1 1 . Terminals 6 | . 5 1 . . Fabricators . | . . . . . Repair Stations 1 | . 1 . . . Recycling Units 1 | . 1 . . . Scanalyzers . | . . . . . Garrison Access . | . . . . . Total Hacks 26 | . 19 5 2 . Successful 16 | . 13 1 2 . Failed 10 | . 6 4 . . Catastrophic 2 | . 2 . . . Database Lockouts . | . . . . . Manual 9 | . 2 3 4 . Terminals 17 | . 12 5 . . Fabricators . | . . . . . Repair Stations 4 | . 4 . . . Recycling Units 3 | . 3 . . . Scanalyzers . | . . . . . Garrison Access . | . . . . . Terminal Hacks 10 | . 7 1 2 . Record 2 | . . . 2 . Robot Analysis 1 | . 1 . . . Prototype ID Bank 1 | . 1 . . . Branch Access Points 1 | . 1 . . . Maintenance Status 1 | . 1 . . . Hauler Manifests 1 | . 1 . . . Registered Prototypes 1 | . 1 . . . Zone Layout 2 | . 1 1 . . Fabricator Hacks . | . . . . . Repair Station Hacks 4 | . 4 . . . Scan Component 2 | . 2 . . . Repair 2 | . 2 . . . Recycling Unit Hacks 2 | . 2 . . . Process 1 | . 1 . . . Report Inventory 1 | . 1 . . . Scanalyzer . | . . . . . Garrison Access Hacks . | . . . . . Unauthorized Hacks . | . . . . . Terminals . | . . . . . Fabricators . | . . . . . Repair Stations . | . . . . . Recycling Units . | . . . . . Scanalyzers . | . . . . . Garrison Access . | . . . . . Data Cores Recovered . | . . . . . Used . | . . . . . Hacking Detections 7 | . 6 1 . . Full Trace Events 1 | . . 1 . . Feedback Events . | . . . . . Feedback Blocked . | . . . . . Robot Schematics Acquired . | . . . . . Robots Built . | . . . . . Authchips . | . . . . . Time . | . . . . . Total Robot Build Rating . | . . . . . Part Schematics Acquired . | . . . . . Parts Built . | . . . . . Authchips . | . . . . . Time . | . . . . . Total Part Build Rating . | . . . . . Parts Repaired 2 | . 2 . . . Time 70 | . 70 . . . Parts Recycled . | . . . . . Recycled Matter 196 | . 196 . . . Retrieved Matter . | . . . . . Retrieved Components . | . . . . . Parts Scanalyzed . | . . . . . Part Schematics Acquired . | . . . . . Parts Damaged . | . . . . . Bothacking | -11 -10 -10 -10 -7 ------------ Run | Yrd Mat Min Sub Rec Used RIF Installer . | . . . . . Robots Hacked . | . . . . . Non-combat . | . . . . . Combat . | . . . . . Robot Hacks Applied . | . . . . . Relay Couplers Released . | . . . . . Fabnet Peak Effective % . | . . . . . Robots Rewired . | . . . . . Allies Hacked . | . . . . . Hacks Repelled . | . . . . . Allies | -11 -10 -10 -10 -7 -------- Run | Yrd Mat Min Sub Rec Total Allies 2 | . . 2 . . Largest Group 2 | . . 2 2 . Highest-Rated Group 38 | . . 38 38 . Highest-Rated Ally 31 | . . 31 31 . Total Orders . | . . . . . Ally Attacks 11 | . . 5 6 . Total Damage 146 | . . 63 83 . Kills 2 | . . 2 . . Allies Corrupted . | . . . . . Allies Melted . | . . . . . Intel | -11 -10 -10 -10 -7 ------- Run | Yrd Mat Min Sub Rec Robot Analysis Total 1 | . 1 . . . Derelict Logs Recovered 4 | . . 2 2 . Drone Launches . | . . . . . Drone Recoveries . | . . . . . Exploration | -11 -10 -10 -10 -7 ------------- Run | Yrd Mat Min Sub Rec Turns Passed 5444 | 280 1867 1244 2032 21 Spaces Moved 3010 | 156 935 693 1215 11 Core 9 | 9 . . . . Treads 3001 | 147 935 693 1215 11 Legs . | . . . . . Wheels . | . . . . . Hover . | . . . . . Flight . | . . . . . Fastest Speed 50 | 50 160 160 160 160 Average Speed 159 | 153 160 160 160 160 Slowest Speed 160 | 160 160 160 160 160 Overloaded Moves . | . . . . . Propulsion Burnouts . | . . . . . Robots Hopped . | . . . . . Cave-ins Triggered . | . . . . . Exploration Rate (%) 56 | 8 97 98 73 6 Regions Visited 4 Branch Regions 3 Pre-discovered Areas 4 | . . 3 1 . Known Exits Taken 2 | . 1 . 1 . Unknown Exits Taken 2 | 1 . 1 . . Scrap Searched 11 | . . 2 9 . Spaces Dug . | . . . . . Terrain Destroyed 3 | . . . 3 . Melee . | . . . . . Projectile 1 | . . . 1 . AOE 2 | . . . 2 . Terrain Rammed . | . . . . . Walls Destroyed . | . . . . . Machines Disabled . | . . . . . Actions | -11 -10 -10 -10 -7 --------- Run | Yrd Mat Min Sub Rec Total 3471 | 182 1223 771 1281 14 Wait 258 | 10 202 30 16 . Move 3006 | 155 934 692 1214 11 Hop . | . . . . . Pick Up 30 | 4 14 5 7 . Fast Attach 14 | 7 3 . 3 1 Attach 4 | . . 1 3 . Detach 2 | . . . 2 . Swap 27 | . 10 4 13 . Drop 30 | . 12 5 11 2 Fire 88 | 6 47 26 9 . Melee 3 | . . . 3 . Ram . | . . . . . Kick . | . . . . . Crush 1 | . 1 . . . Escape Stasis . | . . . . . Rewire . | . . . . . Trap . | . . . . . Miscellaneous 8 | . . 8 . . Route ------- -11/Scrapyard -10/Materials (discovered 4 exits: [*Mat x3] / *Min) -10/Mines (discovered 3 exits: [*Mat x2] / *Sub) -10/Subcaves (discovered 3 exits: *Mat x2 / *Rec) -7/Recycling History --------- Turn | Location | Event 41 | -11/Scrapyard | Discovered new exit (range 16) 281 | -11/Scrapyard | Entered Materials 301 | -10/Materials | Build established: Mutant 342 | -10/Materials | Identified exit to Mines 541 | -10/Materials | Discovered new exit (range 18) 1129 | -10/Materials | Discovered new exit (range 6) 1757 | -10/Materials | Repaired Lgt. Nuclear Core 1791 | -10/Materials | Repaired Imp. Treads 2062 | -10/Materials | Discovered new exit (range 7) 2148 | -10/Materials | Entered Mines 2177 | -10/Mines | A weapon hastily lodged in a ceiling crevice suddenly fell to the ground 2222 | -10/Mines | Discovered new exit (range 8) 2402 | -10/Mines | Learned location of Storage (-7) 2402 | -10/Mines | Discovered new exit (range 13) 2732 | -10/Mines | Learned location of Zion (-7) 3003 | -10/Mines | Found a damaged Exp. Sensor Array with a note attached 3006 | -10/Mines | Found Prototype Device 3276 | -10/Mines | Discovered new exit (range 8) 3295 | -10/Mines | Received a Rocket Launcher from a helpful Derelict 3392 | -10/Mines | Entered Subcaves 3392 | -10/Subcaves | Accompanied by 2 allies 3397 | -10/Subcaves | Led the pair of lost Derelicts to an unsafe place 3408 | -10/Subcaves | Discovered new exit (range 10) 3708 | -10/Subcaves | Ambushed by swarm of Subdwellers 3716 | -10/Subcaves | Ambushed by Subdwellers from Twisted Machinery 3716 | -10/Subcaves | Ambushed by Subdwellers from Twisted Machinery 3716 | -10/Subcaves | Ambushed by Subdwellers from Twisted Machinery 3743 | -10/Subcaves | Destroyed 8 combat bots 3800 | -10/Subcaves | Shifting Twisted Machinery released Sub. Machine Gun 3814 | -10/Subcaves | Shifting Twisted Machinery released Sub. Laser 3971 | -10/Subcaves | Visited Clippyterm 4002 | -10/Subcaves | Discovered new exit (range 11) 4104 | -10/Subcaves | Core integrity fell below 50% 4122 | -10/Subcaves | Learned Materials terminal intel 4218 | -10/Subcaves | Discovered new exit (range 14) 4313 | -10/Subcaves | A swath of the cavern ceiling suddenly collapsed 4499 | -10/Subcaves | Disturbed a concealed Subdweller 4822 | -10/Subcaves | Identified exit to Recycling 5120 | -10/Subcaves | Identified exit to Materials 5424 | -10/Subcaves | Entered Recycling 5432 | -7/Recycling | Found Scrap Engine 5445 | -7/Recycling | Self-destructed Last Messages --------------- 04872_ LE-5A9(R): "ECOKILL!" 04903_ Dropped Imp. Terrain Scanner. 04905_ Acquired Sub. Power Source. 04918_ Acquired 10 matter. 05120_ EXIT=IDENTIFIED: MATERIALS 05248_ Sub. Power Source shoots sparks and powers down. 05248_ Dropped Broken Sub. Power Source. 05254_ Subatomizers dissect the Broken Sub. Power Source. 05290_ Dropped Autogun. 05290_ Acquired Cobbler Unit. 05317_ Subatomizers dissect the Broken Sub. Power Source. 05342_ Subatomizers dissect the Broken Sub. Power Source, destroying it. 05344_ Acquired 9 matter. 05353_ Acquired 1 matter. A mysterious object appears at your location! LOCATION=RECYCLING GOAL=ESCAPE 05428_ Discarded Signal Interpreter. 05428_ Dropped Lrg. Storage Unit. 05432_ Acquired Scrap Engine. Map ----- +----------------------------------------------------+ | ???????????????????????????????????? | | ???????????????????????????????????? | | ???????????????????????????????????? | | ???????????????????????????????????? | | ???????????????????????????????????? | | ???????????????????????????????????? | | ???????????????????????????????????? | | ???????????????????????????????????? | | ???????????????????????????????????? | | ???????????????????????????????????? | | ???? ????????????????????????????? | | ???# ????????????????????????????? | | ???# ????????????????????????????? | | ???# #???#+######????????????????? | | ???# ??? ????????????????? | | ???# ??? ?????????????????? | | ???# ? ??????????????????? | | ???# ? ??????????????????? | | ???# """ """ ????????????????? | | ???# """"" """"" ???????????????? | | ???# """"" """"" ""????????????? | | ???# """"" """"" """???????????? | | ???# """ """ """ ????????? | | ???# ! ???????? | | ????# =]! ???????? | | ????# !![!@ r #??????????????? | | ????# /=[ #??????????????? | | ????###########+###+#??????????????? | | ???????????????????????????????????? | | ???????????????????????????????????? | | ???????????????????????????????????? | | ???????????????????????????????????? | | ???????????????????????????????????? | | ???????????????????????????????????? | | ???????????????????????????????????? | | ???????????????????????????????????? | | ???????????????????????????????????? | | ???????????????????????????????????? | | | | | | | | | | | | | | | | | | | | | | | | | +----------------------------------------------------+ Best States ------------- Heat Dissipation 25 Energy Generation 15 Energy Capacity 250 Matter Stores 300 Matter Capacity 300 Sight Range 16 Robot Scan Range 14 Terrain Scan Density 10 Evasion (%) 50 Recoil Reduction 2 Item Schematics ----------------- None Robot Schematics ------------------ None Fabricated ------------ Nothing Alien Tech Used ----------------- None Achievements -------------- None Challenges ------------ None Game ------ Seed ServoCatalystLeg Manual? 0 Play Time 01:04:00 Cumulative 9.9 hours Start 2024.04.06 @ 22:33:47 End 2024.04.07 @ 14:44:00 Sessions 3 Manual Loads 0 Difficulty Rogue Special Mode None Game No. 7 Rogue 7 Adventurer 0 Explorer 0 Win Type - Total 0 Types 0/0/0/0/0/0/0/0/0 Lore% 16 Gallery% 11 Achievement% 12 Wizard Run 0 Options --------- Layout 0 ASCII 0 Keyboard 0 Movement Numpad Keybinds 0 Fullscreen 1 Font 18/SmallcapsGlow Map View 76x50 Zoom Use 0% Tactical HUD 1 Map Filters NONE Filters NONE Steam 1 RUN: 39895d21-8540-458b-b0f9-3e65c01e8fcd